[Event "Ceske Budejovice GM 2022"]
[Site "Ceske Budejovice"]
[Date "2022.07.09"]
[Round "9.3"]
[White "Donchenko, Alexander"]
[Black "Gazik, Viktor"]
[Result "1-0"]
[ECO "E16"]
[WhiteElo "2640"]
[BlackElo "2544"]
[Annotator "TA"]
[PlyCount "147"]
[EventDate "2022.07.01"]
[EventType "tourn"]
[EventCountry "CZE"]
[SourceTitle "playchess.com"]
[Source "ChessBase"]
[SourceQuality "1"]
[TimeControl "40/5400+30:1800+30"]

{[%evp 17,147,43,35,40,45,24,15,15,15,22,18,19,22,24,60,17,86,74,74,63,79,23,14,9,53,68,57,59,51,59,122,116,210,216,205,187,188,175,346,334,305,348,306,300,307,297,359,353,362,332,347,351,333,325,333,329,485,473,756,745,754,720,661,638,579,530,29958,29961,29963,29964,29964,29964,29964,29963,29961,29964,29956,12823,29969,29967,29968,29969,29969,29970,29970,29971,29971,29971,29972,29972,29972,29969,29973,29974,29977,29978,29978,29974,29978,29979,29979,29980,29979,29981,29982,29983,29983,29984,29984,29985,29985,29985,29985,29986,29986,29987,29987,29988,29988,29987,29987,29988,29988,29989,29989,29989,29989,29990,29996,29997,29997,29998]} 1. d4 {[%emt 0:00:01]} Nf6 {[%emt 0:00:53]} 2. c4 {[%emt 0:00:08]} e6 {[%emt 0:00:20]} 3. Nf3 {[%emt 0:00:14]} Bb4+ {[%emt 0:00:10]} 4. Bd2 {[%emt 0:00:16]} Qe7 {[%emt 0:02:58]} 5. g3 {[%emt 0:00:34]} O-O {[%emt 0:00:53]} 6. Bg2 {[%emt 0:00:15]} Bxd2+ {[%emt 0:01:03]} 7. Qxd2 {[%emt 0:00:26]} d6 {[%emt 0:00:05]} 8. Nc3 {[%emt 0:00:34]} e5 {[%emt 0:01:42]} 9. O-O {[%emt 0:00:14]} Bg4 {[%emt 0:10:29]} 10. dxe5 {[%emt 0:20:57] E11: Bogo-Indian.} (10. Rae1 {is interesting.} Re8 11. Ng5 Nc6 12. e3) 10... dxe5 {[%emt 0:00:07]} 11. Nxe5 {[%emt 0:00:24]} Qxe5 {[%emt 0:00:17]} 12. Bxb7 {[%emt 0:00:05] The position is equal.} Nbd7 {[%emt 0:01:42] Threatens to win with ...Rad8.} 13. Bxa8 {[%emt 0:00:07]} Rxa8 {[%emt 0:00:03]} 14. f3 {[%emt 0:01:01] [#]} Be6 $146 {[%emt 0:16:29]} ({Predecessor:} 14... Qc5+ 15. Kg2 Be6 16. b3 h6 17. Rad1 a5 18. e4 Qh5 19. Rf2 Ne5 20. Qf4 a4 {½-½ (50) Begunov,K (2350)-Orlov,V (2350) Leningrad 1994}) 15. b3 $1 {[%emt 0:01:58]} a5 {[%emt 0:01:18][%cal Oa5a4]} 16. Rad1 {[%emt 0:07:20]} Kf8 {[%emt 0:01:07]} (16... a4 $11) 17. Qd4 {[%emt 0:01:28]} Qxd4+ {[%emt 0:04:01]} 18. Rxd4 {[%emt 0:00:13]} Nc5 {[%emt 0:00:03]} 19. e4 {[%emt 0:09:37]} (19. Rfd1 $16) 19... Rb8 {[%emt 0:06:16] Against Rd8+} 20. f4 {[%emt 0:06:50]} g6 {[%emt 0:03:26][%cal Oa5a4]} 21. f5 {[%emt 0:03:25]} gxf5 {[%emt 0:00:04]} 22. exf5 {[%emt 0:00:05]} Bd7 {[%emt 0:00:02]} 23. Nd5 {[%emt 0:14:49]} Nfe4 {[%emt 0:00:48] White leaves nothing to chance now.} (23... Nce4 $14) 24. Nxc7 $16 {[%emt 0:01:12][%cal Oc7a6]} a4 {[%emt 0:06:25] [#]} (24... Bc6 $16 {was necessary.}) 25. Ne6+ $1 $18 {[%emt 0:01:50][%mdl 512]} Bxe6 {[%emt 0:04:05]} 26. fxe6 {[%emt 0:00:09]} f6 {[%emt 0:00:03] [#]} 27. Re1 $1 {[%emt 0:04:07]} Ng5 $2 {[%emt 0:12:48]} (27... axb3 28. axb3 Ng5 29. e7+ Ke8 30. Rd8+ Rxd8 31. exd8=N+ (31. exd8=B+ Kxd8 32. Rd1+ Ke7 $18) 31... Kxd8) 28. e7+ {[%emt 0:00:41]} Ke8 {[%emt 0:00:15] Strongly threatening ...Nf3+.} 29. Rd8+ $1 {[%emt 0:04:51]} Rxd8 {[%emt 0:00:15]} 30. exd8=Q+ {[%emt 0:00:05]} ({Not} 30. exd8=B+ Kxd8 31. Rd1+ Kc7 $16) 30... Kxd8 {[%emt 0:00:04]} 31. Rd1+ {[%emt 0:00:15]} Kc7 {[%emt 0:00:41]} 32. Rd5 {[%emt 0:03:28]} Kc6 {[%emt 0:03:28]} 33. bxa4 {[%emt 0:07:23]} Nxa4 {[%emt 0:03:24]} 34. Rf5 {[%emt 0:02:25] Against Nf3+} Ne4 {[%emt 0:02:30]} 35. Rh5 {[%emt 0:02:30]} Nac3 {[%emt 0:01:34]} 36. a3 {[%emt 0:04:19]} Nd2 {[%emt 0:04:25]} (36... Kd7 $142 37. Rxh7+ Ke6) 37. Rxh7 {[%emt 0:00:26]} Nxc4 {[%emt 0:00:05]} (37... Nf3+ $142 38. Kf2 Ne5) 38. h4 {[%emt 0:01:06]} Ne4 {[%emt 0:03:41]} 39. Rg7 {[%emt 0:03:13]} Ne3 {[%emt 0:02:18]} 40. Rg6 {[%emt 0:00:45]} Nf5 {[%emt 0:04:24]} 41. Kg2 {[%emt 0:01:46]} Nexg3 {[%emt 0:02:47]} 42. Rxg3 {[%emt 0:02:49]} Nxh4+ {[%emt 0:00:08] KR-KN} 43. Kf2 {[%emt 0:00:20]} Kb5 {[%emt 0:03:08]} 44. Ke2 {[%emt 0:02:07]} Nf5 {[%emt 0:00:16]} 45. Rd3 {[%emt 0:01:07]} Kc4 {[%emt 0:05:53]} 46. Kd2 {[%emt 0:00:31]} Nd4 {[%emt 0:00:29]} 47. Rc3+ {[%emt 0:00:06]} Kb5 {[%emt 0:00:03]} 48. Kd3 {[%emt 0:00:25] White mates.} Nc6 {[%emt 0:01:05]} 49. a4+ {[%emt 0:00:34]} Kb6 {[%emt 0:00:04]} 50. Kc4 {[%emt 0:00:11]} Ne5+ {[%emt 0:00:45]} 51. Kb4 {[%emt 0:00:47]} Nc6+ {[%emt 0:00:03]} 52. Ka3 {[%emt 0:00:08]} f5 {[%emt 0:00:08]} 53. Rc4 {[%emt 0:00:40]} Ne7 {[%emt 0:00:50]} 54. Kb3 {[%emt 0:03:50]} Nd5 {[%emt 0:01:27]} 55. Rc8 {[%emt 0:02:27]} f4 {[%emt 0:01:06]} 56. Rf8 {[%emt 0:00:57]} Kc5 {[%emt 0:00:09]} 57. Rf5 {[%emt 0:02:38]} Kc6 {[%emt 0:01:47]} 58. a5 {[%emt 0:01:32]} Ne7 {[%emt 0:00:34]} 59. Rxf4 {[%emt 0:01:24]} Kb5 {[%emt 0:00:16]} 60. Rf7 {[%emt 0:00:06]} Nc6 {[%emt 0:00:13]} 61. Rf5+ {[%emt 0:00:08]} Ka6 {[%emt 0:00:05]} 62. Ka4 {[%emt 0:00:23]} Kb7 {[%emt 0:00:04]} 63. Rf7+ {[%emt 0:00:27]} Ka6 {[%emt 0:00:05]} 64. Rf6 {[%emt 0:00:05]} Kb7 {[%emt 0:00:03]} 65. a6+ {[%emt 0:00:21]} Kc7 {[%emt 0:00:04]} 66. Kb5 {[%emt 0:00:09]} Na7+ {[%emt 0:00:05]} 67. Kc5 {[%emt 0:00:05]} Nc8 {[%emt 0:00:07]} 68. Rf8 {[%emt 0:01:11]} Na7 {[%emt 0:00:12]} 69. Rf7+ {[%emt 0:00:17]} Kb8 {[%emt 0:00:05]} 70. Rb7+ {[%emt 0:00:05]} Ka8 {[%emt 0:00:04]} 71. Rc7 {[%emt 0:00:06]} Kb8 {[%emt 0:00:07]} 72. Kb6 {[%emt 0:00:06]} Nb5 {[%emt 0:00:04]} 73. Rb7+ {[%emt 0:00:06]} Ka8 {[%emt 0:00:05]} 74. Rh7 {[%emt 0:00:05] Weighted Error Value: White=0.06 (flawless) /Black=0.40} 1-0

[Event "Ceske Budejovice GM 2022"]
[Site "Ceske Budejovice"]
[Date "2022.07.09"]
[Round "9.4"]
[White "Malinovsky, Karel"]
[Black "Kraus, Tomas"]
[Result "1/2-1/2"]
[ECO "B30"]
[WhiteElo "2463"]
[BlackElo "2488"]
[Annotator "RC"]
[PlyCount "48"]
[EventDate "2022.07.01"]
[EventType "tourn"]
[EventCountry "CZE"]
[SourceTitle "playchess.com"]
[Source "ChessBase"]
[SourceQuality "1"]
[TimeControl "40/5400+30:1800+30"]

1. e4 {[%emt 0:00:05]} c5 {[%emt 0:06:02]} 2. Nf3 {[%emt 0:00:07]} Nc6 {[%emt 0:00:38]} 3. Bc4 {[%emt 0:00:25]} e6 {[%emt 0:01:31]} 4. O-O {[%emt 0:00:28]} a6 {[%emt 0:01:45]} 5. Re1 {[%emt 0:01:26]} Nf6 {[%emt 0:05:16]} 6. d4 {[%emt 0:05:08]} cxd4 {[%emt 0:06:34]} 7. Nxd4 {[%emt 0:02:25]} Qc7 {[%emt 0:08:18]} 8. Nxc6 {[%emt 0:04:17]} bxc6 {[%emt 0:05:27]} 9. e5 {[%emt 0:07:35]} Nd5 {[%emt 0:01:01]} 10. Bf1 {[%emt 0:00:34]} c5 {[%emt 0:04:36]} 11. c4 {[%emt 0:05:04]} Ne7 {[%emt 0:02:11]} 12. Nd2 {[%emt 0:03:05]} Bb7 {[%emt 0:03:54]} 13. Ne4 {[%emt 0:06:49]} Nc6 {[%emt 0:10:48]} 14. Nd6+ {[%emt 0:01:51]} Bxd6 {[%emt 0:00:08]} 15. exd6 {[%emt 0:00:05]} Qb6 {[%emt 0:01:48]} 16. Be3 {[%emt 0:03:05]} a5 {[%emt 0:04:14]} 17. Qh5 {[%emt 0:09:51]} Nd4 {[%emt 0:04:26]} 18. Bxd4 {[%emt 0:02:45]} cxd4 {[%emt 0:00:01]} 19. c5 {[%emt 0:04:08]} Qc6 {[%emt 0:09:18]} 20. Qh4 {[%emt 0:01:37]} O-O {[%emt 0:00:15]} 21. Qxd4 {[%emt 0:00:06]} Ba6 {[%emt 0:00:41]} 22. Bxa6 {[%emt 0:01:16]} Rxa6 {[%emt 0:00:15]} 23. Rac1 {[%emt 0:00:28]} Rc8 {[%emt 0:02:02]} 24. Re3 {[%emt 0:03:47]} Qxd6 {[%emt 0:01:06]} 1/2-1/2

[Event "Ceske Budejovice GM 2022"]
[Site "Ceske Budejovice"]
[Date "2022.07.09"]
[Round "9.5"]
[White "Stefansson, Hannes"]
[Black "Omelja, Artem"]
[Result "1/2-1/2"]
[ECO "C67"]
[WhiteElo "2541"]
[BlackElo "2478"]
[Annotator "TA"]
[PlyCount "23"]
[EventDate "2022.07.01"]
[EventType "tourn"]
[EventCountry "CZE"]
[SourceTitle "playchess.com"]
[Source "ChessBase"]
[SourceQuality "1"]
[TimeControl "40/5400+30:1800+30"]

{[%evp 19,21,4,14,0]} 1. e4 {[%emt 0:00:03]} e5 {[%emt 0:00:16]} 2. Nf3 {[%emt 0:00:11]} Nc6 {[%emt 0:00:05]} 3. Bb5 {[%emt 0:00:11]} Nf6 {[%emt 0:00:09]} 4. O-O {[%emt 0:00:12]} Nxe4 {[%emt 0:00:07]} 5. d4 {[%emt 0:00:14][%cal Bd2d4,Bd4e5][%mdl 32]} Nd6 {[%emt 0:00:10]} 6. dxe5 {[%emt 0:00:09]} Nxb5 {[%emt 0:00:07]} 7. a4 {[%emt 0:00:08]} Nbd4 {[%emt 0:00:14]} 8. Nxd4 {[%emt 0:00:07]} d5 {[%emt 0:00:09]} 9. exd6 {[%emt 0:00:32]} Nxd4 {[%emt 0:00:07]} 10. Qxd4 {[%emt 0:00:07]} Qxd6 {[%emt 0:00:09]} ({Don't do} 10... Be6 11. Bf4 $16) 11. Qe4+ {[#] A rather calm draw. C67: Ruy Lopez: Berlin Defence: 4 0-0 Nxe4.} {Predecessor:} Qe6 $146 12. Qd4 {½-½ (12) Nepomniachtchi,I (2782)-Fedoseev,V (2704) Warsaw 2021} 1/2-1/2